Cogmind - Beta 17 --- EXPLORER MODE // 2026.08.05 @ 08:06:01 Player: Lenbot7 Result: Destroyed by Y-45 Defender with Beam Rifle Performance ------------- Evolutions (1) 500 Regions Visited (2) 400 Robots Destroyed (22) 110 Value Destroyed (799) 799 Prototype IDs (3) 60 Alien Tech Used (0) 0 Bonus (0) 0 TOTAL SCORE: 1869 Bonus ------- None Cogmind --------- Core Integrity 0/400 Matter 300/300 Energy 100/100 System Corruption 0% Temperature Cool (9) Movement Core (350) Ox6 Location -9/Materials Parts ------- > --- POWER (2) -------- (None) > --- PROPULSION (2) --- (None) > --- UTILITY (3) ------ Large Storage Unit > --- WEAPON (3) ------- (None) > --- INVENTORY (15) --- Light Treads Light Treads Medium Storage Unit Signal Interpreter Terrain Scan Processor ECM Suite Propulsion Shielding EM Pulse Gun Light Assault Rifle Hammer Peak State ------------ > --- POWER ------------ Ion Engine Ion Engine > --- PROPULSION ------- Light Treads Light Treads > --- UTILITY ---------- Large Storage Unit Structural Scanner Weapon Shielding > --- WEAPON ----------- Medium Laser Spread Laser Particle Cannon > --- INVENTORY -------- Aluminum Leg Medium Storage Unit Signal Interpreter Terrain Scan Processor ECM Suite Propulsion Shielding EM Pulse Gun Light Assault Rifle Hammer [Rating: 13] Favorites ----------- Power Ion Engine Engine Ion Engine Propulsion Aluminum Leg Treads Light Treads Leg Aluminum Leg Utility Weapon Shielding Device Structural Scanner Storage Medium Storage Unit Processor Targeting Computer Protection Weapon Shielding Weapon Light Assault Rifle Energy Gun Spread Laser Energy Cannon Particle Cannon Ballistic Gun Light Assault Rifle Special Weapon Mining Laser Impact Weapon Hammer Build | -11 -10 -9 ------- Run | Yrd Mat Mat Slots Evolved 3 | . 1 2 Power 1 | . . 1 Propulsion . | . . . Utility 1 | . 1 . Weapon 1 | . . 1 Parts Attached 19 | . 16 3 Power 3 | . 2 1 Engine 3 | . 2 1 Core . | . . . Reactor . | . . . Propulsion 5 | . 3 2 Treads 2 | . 2 . Leg 3 | . 1 2 Wheel . | . . . Hover . | . . . Flight . | . . . Utility 3 | . 3 . Device 1 | . 1 . Storage 1 | . 1 . Processor 1 | . 1 . Hackware . | . . . Protection . | . . . Artifact . | . . . Weapon 8 | . 8 . Energy Gun 4 | . 4 . Energy Cannon 1 | . 1 . Ballistic Gun 1 | . 1 . Ballistic Cannon . | . . . Launcher . | . . . Special Weapon 1 | . 1 . Impact Weapon 1 | . 1 . Slashing Weapon . | . . . Piercing Weapon . | . . . Special Melee Weapon . | . . . Unidentified Prototypes . | . . . Parts Lost 14 | . 5 9 Power 4 | . 2 2 Propulsion 4 | . 2 2 Utility 2 | . . 2 Weapon 4 | . 1 3 Highest Loss Streak 6 | . 2 6 To Critical Strikes 1 | . . 1 Average Backups 8 | . 8 9 Power . | . . . Propulsion 1 | . 1 1 Utility 4 | . 3 5 Weapon 2 | . 2 3 Tool/Special . | . . . Unused Backups 3 | . . 3 Power . | . . . Propulsion . | . . . Utility 3 | . . 3 Weapon . | . . . Tool/Special . | . . . Average Slot Usage (%) 91 | . 96 81 Engine 10 | . 9 14 Treads 9 | . 10 8 Leg 12 | . 14 7 Device 7 | . 6 8 Storage 11 | . 12 10 Processor 3 | . 5 . Protection 10 | . 12 6 Energy Gun 10 | . 6 17 Energy Cannon 3 | . 1 9 Ballistic Gun 6 | . 9 . Special Weapon 1 | . 1 . Impact Weapon 2 | . 4 . Peak Build Rating 13 | . 11 13 Average Rating 9 | . 8 10 On Entrance 8 | 7 7 11 Avg Prop Armor Cover (%) . | . . . Naked Turns . | . . . Heaviest Build 41 | 16 34 41 Greatest Support 40 | 20 40 40 Greatest Overweight (x) 10 | . 1 10 Average Overweight (x) . | . . 1 Largest Inventory Capacity 15 | . 15 15 Average Capacity 12 | . 10 15 Most Carried 10 | . 10 10 Average Carried 8 | . 8 9 Final Capacity 15 | 10 15 15 Final Carried 10 | 7 9 10 Class Distribution -------------------- 89% | Hacker-Mutant 10% | Hacker-Tank Dominant Class ---------------- Hacker-Mutant | -10/Materials Hacker-Mutant | -9/Materials Resources | -11 -10 -9 ----------- Run | Yrd Mat Mat Matter Collected 450 | 188 192 70 Remotely . | . . . Salvage Created 836 | . 501 335 Parts 46 | . 24 22 Haulers Intercepted . | . . . Recyclers Shooed . | . . . Parts Field Recycled . | . . . Retrieved Matter . | . . . Parts Self-Destructed . | . . . Prevented . | . . . Parts Restored . | . . . Kills | -11 -10 -9 ------- Run | Yrd Mat Mat Combat Hostiles Destroyed 20 | . 12 8 Guns 17 | . 12 5 Cannons 3 | . . 3 Classes Destroyed 4 | . 2 2 Operator 1 | . . 1 Watcher 1 | . 1 . Grunt 18 | . 12 6 Sentry 2 | . . 2 Best Kill Streak 4 | . 3 4 Combat Bots Only 4 | . 3 4 Max Kills in Single Turn 2 | . 2 2 Gunslinging 1 | . 1 . Exploded . | . . . Melee . | . . . Uniques/NPCs Destroyed . | . . . Combat | -11 -10 -9 -------- Run | Yrd Mat Mat Hostile Shots Fired 316 | . 145 171 Missed 82 | . 38 44 Hits 234 | . 107 127 Projectile 234 | . 107 127 Critical Strikes 8 | . 1 7 Actively Blocked 1 | . 1 . Damage Taken 1936 | . 787 1149 Core 587 | . 186 401 Absorbed by Shields . | . . . Redirected to Shielding 50 | . 31 19 Ignored by Resistances 1202 | . 503 699 Regen/Repaired (Parts) 78 | . 78 . Core Remaining (%) 62 | 100 25 . Volleys Fired 87 | . 72 15 Largest 3 | . 2 3 Hottest 183 | . 150 183 Shots Fired 133 | . 98 35 Gun 120 | . 92 28 Cannon 7 | . . 7 Launcher . | . . . Special 6 | . 6 . Kinetic 51 | . 51 . Thermal 72 | . 37 35 Explosive . | . . . Electromagnetic 10 | . 10 . Robot Hit Streak 54 | . 54 21 Robot Miss Streak 2 | . 1 2 Penetration Max . | . . . Secondary Targets 2 | . 2 . Max Gunslinging Chain 1 | . 1 . Shots Hit Robots 111 | . 85 26 Core Hits 71 | . 39 32 Critical Kills 1 | . 1 . Critical Parts Destroyed . | . . . Critical Strikes 4 | . 2 2 Burn 3 | . 1 2 Destroy 1 | . 1 . Melee Attacks . | . . . Impact . | . . . Slashing . | . . . Piercing . | . . . Sneak Attacks . | . . . Combat Hostiles . | . . . Follow-up Attacks . | . . . Damage Inflicted 1334 | . 892 442 Guns 1204 | . 844 360 Cannons 82 | . . 82 Explosions . | . . . Melee . | . . . Ramming . | . . . Kinetic 388 | . 388 . Thermal 810 | . 368 442 Explosive . | . . . Electromagnetic 136 | . 136 . Impact . | . . . Slashing . | . . . Piercing . | . . . Highest Corruption . | . . . Average Corruption . | . . . Corruption Purged . | . . . Corruption Blocked . | . . . Overload Shots . | . . . Overflow Damage . | . . . Projectiles . | . . . Explosions . | . . . Melee . | . . . Knockbacks . | . . . Impact . | . . . Kinetic . | . . . Secondary . | . . . Self-Inflicted Damage . | . . . Shots . | . . . Rammed . | . . . Targets Rammed . | . . . Kicked . | . . . Crushed . | . . . Highest Temperature 510 | . 257 510 Average Temperature 127 | . 100 164 Received Heat Transfer 1605 | . 726 879 Effects 3 | . 2 1 Interference 2 | . 2 . Short Circuit 1 | . . 1 Siege Activations . | . . . Martial Activations . | . . . Shielding Activations . | . . . Robots Disrupted . | . . . Combat Hostiles . | . . . Robots Corrupted . | . . . Combat Hostiles . | . . . Parts Fried . | . . . Impact Corruptions . | . . . Robots Melted . | . . . Combat Hostiles . | . . . Parts Melted 1 | . . 1 Heat Transferred 1875 | . 919 956 Parts Sabotaged . | . . . Parts Stolen . | . . . Parts Stripped . | . . . Power Chain Reactions . | . . . Alert | -11 -10 -9 ------- Run | Yrd Mat Mat Maximum Alert Level . | . . . Low Security (%) 100 | . 100 100 Level 1 . | . . . Level 2 . | . . . Level 3 . | . . . Level 4 . | . . . Level 5 . | . . . High Security . | . . . Max Security . | . . . Peak Influence 120 | . 95 120 Initial . | . . . Average 26 | . 21 36 Influence Increases 590 | . 385 205 Destroy 0b10 Robot/C 400 | . 240 160 Destroy 0b10 Robot/NC 10 | . 5 5 Destroy Leader 112 | . 72 40 Trap Triggered on 0b10 10 | . 10 . Successful Hack 9 | . 9 . Destroy Structure 4 | . 4 . Lose Combat Pursuer 45 | . 45 . Influence Decreases 590 | . 385 205 Time Decay 525 | . 350 175 Lost Part 65 | . 35 30 Squads Dispatched 6 | . 5 1 Investigation 6 | . 5 1 Extermination . | . . . Reinforcement . | . . . Assault . | . . . Garrison . | . . . Intercept . | . . . Searches Triggered . | . . . Construction Impeded . | . . . Haulers Reinforced . | . . . Active Scanning Responses . | . . . Cargo Convoy Interrupts . | . . . Stealth | -11 -10 -9 --------- Run | Yrd Mat Mat Distress Signals 2 | . . 2 Communications Jammed . | . . . Distress Signals . | . . . Times Spotted 35 | . 19 16 Peak Tracking Total 6 | . 4 6 Tactical Retreats 2 | . 2 . Traps | -11 -10 -9 ------- Run | Yrd Mat Mat Traps Triggered 2 | . 1 1 Indirectly . | . . . Trap Hack Attempts . | . . . Triggered . | . . . Disarmed . | . . . Reprogrammed 4 | . 4 . Reused 1 | . 1 . Traps Extracted . | . . . Installed . | . . . Triggered 1 | . 1 . Machines | -11 -10 -9 ---------- Run | Yrd Mat Mat Machines Disabled . | . . . Max in Single Turn . | . . . Machines Repaired . | . . . Machines Dismantled . | . . . Machines Sabotaged . | . . . Overloaded Fab Kills . | . . . Hacking | -11 -10 -9 --------- Run | Yrd Mat Mat Machines Accessed 11 | . 10 1 Terminals 9 | . 8 1 Fabricators . | . . . Repair Stations 1 | . 1 . Recycling Units 1 | . 1 . Scanalyzers . | . . . Garrison Access . | . . . Total Hacks 52 | . 45 7 Successful 37 | . 31 6 Failed 15 | . 14 1 Catastrophic . | . . . Database Lockouts . | . . . Manual 1 | . 1 . Terminals 42 | . 35 7 Fabricators . | . . . Repair Stations 5 | . 5 . Recycling Units 5 | . 5 . Scanalyzers . | . . . Garrison Access . | . . . Terminal Hacks 28 | . 22 6 Record 6 | . 3 3 Robot Analysis 2 | . 2 . Prototype ID Bank 2 | . 2 . Branch Access Points 1 | . . 1 Emergency Access Points 2 | . 2 . Alert Level 2 | . 2 . Locate Traps 3 | . 2 1 Reprogram Traps 1 | . 1 . Dispatch Records 1 | . 1 . Maintenance Status 2 | . 1 1 Patrol Status 1 | . 1 . Assault Status 1 | . 1 . Hauler Manifests 1 | . 1 . Zone Layout 3 | . 3 . Fabricator Hacks . | . . . Repair Station Hacks 4 | . 4 . Scan Component 2 | . 2 . Repair 2 | . 2 . Recycling Unit Hacks 4 | . 4 . Process 1 | . 1 . Report Inventory 1 | . 1 . Retrieve Matter 1 | . 1 . Retrieve Components 1 | . 1 . Scanalyzer . | . . . Garrison Access Hacks . | . . . Unauthorized Hacks 1 | . 1 . Terminals 1 | . 1 . Skim 1 | . 1 . Fabricators . | . . . Repair Stations . | . . . Recycling Units . | . . . Scanalyzers . | . . . Garrison Access . | . . . Data Cores Recovered 1 | . . 1 Used . | . . . Hacking Detections 11 | . 10 1 Full Trace Events 10 | . 9 1 Feedback Events . | . . . Feedback Blocked . | . . . Robot Schematics Acquired . | . . . Robots Built . | . . . Authchips . | . . . Time . | . . . Total Robot Build Rating . | . . . Part Schematics Acquired . | . . . Parts Built . | . . . Authchips . | . . . Time . | . . . Total Part Build Rating . | . . . Part Studies Acquired . | . . . Parts Repaired 2 | . 2 . Time 58 | . 58 . Parts Recycled . | . . . Recycled Matter . | . . . Retrieved Matter . | . . . Retrieved Components 3 | . 3 . Parts Scanalyzed . | . . . Part Schematics Acquired . | . . . Parts Damaged . | . . . Bothacking | -11 -10 -9 ------------ Run | Yrd Mat Mat Used RIF Installer . | . . . Robots Hacked . | . . . Non-combat . | . . . Combat . | . . . Robot Hacks Applied . | . . . Relay Couplers Released . | . . . Fabnet Peak Effective % . | . . . Robots Rewired . | . . . Allies Hacked . | . . . Hacks Repelled . | . . . Allies | -11 -10 -9 -------- Run | Yrd Mat Mat Total Allies . | . . . Largest Group . | . . . Highest-Rated Group . | . . . Highest-Rated Ally . | . . . Total Orders . | . . . Ally Attacks . | . . . Total Damage . | . . . Kills . | . . . Allies Corrupted . | . . . Allies Melted . | . . . Intel | -11 -10 -9 ------- Run | Yrd Mat Mat Active Infowar (turns) 798 | . 477 321 Structural 798 | . 477 321 Robot Analysis Total 2 | . 2 . Derelict Logs Recovered . | . . . Drone Launches . | . . . Drone Recoveries . | . . . Exploration | -11 -10 -9 ------------- Run | Yrd Mat Mat Turns Passed 1260 | . 868 392 Spaces Moved 568 | 1 471 96 Core 1 | . . 1 Treads 248 | . 199 49 Legs 319 | 1 272 46 Wheels . | . . . Hover . | . . . Flight . | . . . Fastest Speed 120 | 120 120 160 Average Speed 151 | 120 137 219 Slowest Speed 550 | 120 190 550 Overloaded Moves . | . . . Propulsion Burnouts . | . . . Robots Hopped . | . . . Potential Cave-ins . | . . . Cave-ins Triggered . | . . . Exploration Rate (%) 30 | 1 71 19 Regions Visited 2 Branch Regions . Pre-discovered Areas . | . . . Known Exits Taken 2 | 1 1 . Unknown Exits Taken . | . . . Scrap Searched . | . . . Spaces Dug 2 | . 2 . Terrain Destroyed 3 | . 3 . Melee . | . . . Projectile 3 | . 3 . AOE . | . . . Terrain Rammed . | . . . Walls Destroyed . | . . . Machines Disabled . | . . . Actions | -11 -10 -9 --------- Run | Yrd Mat Mat Total 836 | . 589 247 Wait 143 | . 14 129 Move 566 | . 470 96 Hop . | . . . Pick Up 14 | . 11 3 Fast Attach 2 | . 2 . Attach 10 | . 8 2 Detach 2 | . 2 . Swap 10 | . 8 2 Drop 2 | . 2 . Fire 87 | . 72 15 Melee . | . . . Ram . | . . . Kick . | . . . Crush . | . . . Escape Stasis . | . . . Rewire . | . . . Trap . | . . . Miscellaneous . | . . . Route ------- -11/Scrapyard -10/Materials (discovered 2 exits: *Mat x2) -9/Materials (discovered 2 exits: Min / Sto) History --------- Turn | Location | Event 1 | -11/Scrapyard | Identified exit to Materials 1 | -11/Scrapyard | Discovered exit to Materials (range 0) 1 | -11/Scrapyard | Entered Materials 1 | -10/Materials | Evolved 1 slot: Utility x1 315 | -10/Materials | Build established: Hacker-Mutant 511 | -10/Materials | Identified exit to Materials 511 | -10/Materials | Discovered exit to Materials (range 10) 608 | -10/Materials | Core integrity fell below 50% 644 | -10/Materials | Discovered exit to Materials (range 15) 746 | -10/Materials | Repaired Lgt. Assault Rifle 778 | -10/Materials | Repaired Particle Cannon? 869 | -10/Materials | Entered another Materials area 869 | -9/Materials | Evolved 2 slots: Power x1, Weapon x1 890 | -9/Materials | Identified exit to Mines 890 | -9/Materials | Identified exit to Storage 1189 | -9/Materials | Lost 3 parts (1p1n1u) 1237 | -9/Materials | Core integrity fell below 50% 1251 | -9/Materials | Core integrity fell below 20% 1260 | -9/Materials | Lost 6 parts (1p1n1u3w) 1261 | -9/Materials | Destroyed by Y-45 Defender with Beam Rifle Last Messages --------------- R-06 Scavenger inserts Particle Gun into recycling unit. Weapon Shielding destroyed. Recycling unit begins matter transfer process. Aluminum Leg destroyed. O-16 Technician suffers critical hit (Burn). Hover Unit melted. O-16 Technician destroyed. R-06 Scavenger collects Lgt. Ion Engine. Acquired data core, extracted dynamic key. Decrypted 1 local trap positions from data. Structural Scanner destroyed. Critical hit (Destroy). Spread Laser destroyed. Aluminum Leg destroyed. Critical hit (Burn: +37). Broken Particle Cannon destroyed. Med. Laser destroyed. Critical hit (Burn: +37). Ion Engine destroyed. Critical hit (Burn: +37). Map ----- +----------------------------------------------------+ | ????????????????????????????????????? " | | ??????????????????????######################### | | ??????????????????????################# ########%# | | ??????????????????????## #### ^ %# | | ??????????????????????## #### %% | | ??????????????????????## + #### | | ??????????????????????## #### #### | | ??????????????????????## #### ##?? | | ??????????????????????## ##### "Y" ##?? | | ??????????????????????## ##### """ ? | | ??????????????????????## ##?## | | ?????????????? ??## ##?## | | ?????????????#####+#########/######## ########## | | ?????????????### ##### ##### #### | | ????????????? T" ##??????? | | ????????????? " ?????? | | ????????????? ###?????? | | ?????????????### ##### ##### ###?????? | | ?????????????#### ####### ########+####??????? | | ?????????????? # ??###?### % ###? ###??????? | | ??????????????? # ??# ??## ##?????????????????? | | ??????????????? + ??# ""?## ##?????????????????? | | ????????????????????# "T?##Y ##?????????????????? | | ????????????????????# "" # gg #######+??????????? | | ????????????????????# # Y ??????? | | ????????????????????# @ Tr ?>????? | | ????????????????????# # ??????? | | ????????????????????# # !#######+## ???????? | | ????????????????????######## ### ?????????????? | | ???????????????????????? # ##????????????????? | | ???????????????????????????? ##????????????????? | | ???????????????????????????? ##????????????????? | | ???????????????????????????? ##????????????????? | | ???????????????????????????? ##????????????????? | | ???????????????????????????? ##????????????????? | | ???????????????????????????? #?????????????????? | | ????????????????????????????? #?????????????????? | | ????????????????????????????? #?????????????????? | | ????????????????????????????? #?????????????????? | | ????????????????????????????? ???????????????????? | | ?????????????????????????????????????????????????? | | ?????????????????????????????????????????????????? | | ?????????????????????????????????????????????????? | | ?????????????????????????????????????????????????? | | ?????????????????????????????????????????????????? | | ?????????????????????????????????????????????????? | | ?????????????????????????????????????????????????? | | ?????????????????????????????????????????????????? | | ?????????????????????????????????????????????????? | | ?????????????????????????????????????????????????? | +----------------------------------------------------+ Best States ------------- Heat Dissipation 28 Energy Generation 15 Energy Capacity 400 Matter Stores 300 Matter Capacity 300 Sight Range 16 Terrain Scan Density 10 Resistance: KI 35 Resistance: TH 35 Resistance: EX 35 Resistance: EM 35 Resistance: I 35 Resistance: S 35 Resistance: P 35 Weapon Shielding 33 Evasion (%) 55 Targeting Accuracy 5 Recoil Reduction 2 Offensive Hacking 20 Item Schematics ----------------- None Robot Schematics ------------------ None Fabricated ------------ Nothing Repaired ---------- Particle Cannon | 29% | -10/Materials Studied --------- None Alien Tech Used ----------------- None Achievements -------------- That Tickles Well Done Challenges ------------ None Game ------ Seed AluminumPointForcegen Manual? 0 Play Time 00:19:56 Cumulative 4.6 hours Start 2026.08.05 @ 07:46:37 End 2026.08.05 @ 08:06:01 Sessions 1 Manual Loads 0 Difficulty Explorer Special Mode None Game No. 18 Rogue 16 Adventurer 0 Explorer 2 Win Type - Total 0 Types 0/0/0/0/0/0/0/0/0/0 Lore% 3 Gallery% 7 Achievement% 7 Wizard Run 0 Options --------- Layout 0 ASCII 0 Keyboard 0 Movement Mouse Keybinds 0 Fullscreen 1 Font 18/SmallcapsGlow Map View 76x50 Zoom Use 0% Tactical HUD 0 Map Filters NONE Filters NONE Steam 1 RUN: 59dccbfe-04ba-48f9-9896-4660dc1b0fac